Workbook

Sheet Report_4W
A1: Name: | B1: =Nachname&", "&Vorname -> , | J1: Geburstdatum: | L1: =Geburtsdatum -> 00:00:00 | V1: Betrachtungszeitraum: | W1: =TEXT(MIN(tDatumswerte),"tt. MMM.")&" - "&TEXT(MAX(tDatumswerte),"tt. MMM.jjjj") -> 00. Jan. - 00. Jan.1900
B3: Morgens  | E3: Mittags  | H3: Abends 
A4: Datum | B4: Syst. | C4: Diast. | D4: Puls | E4: Syst. | F4: Diast. | G4: Puls | H4: Syst. | I4: Diast. | J4: Puls
AB14: ─

Sheet intermediate (hidden)
B2: 4W-Datentabelle: Max. Kategorie
B4: Morgens | C4: Mittags | D4: Abends | H4: Datum1 | I4: Tageszeit | J4: Datum2 | K4: Syst. | L4: Diast. | M4: Puls | N4: Kat_Morgen | O4: Kat_Mittag | P4: Kat_Abend | V4: 1 | W4: 2 | X4: 3 | Y4: 4 | Z4: 5 | AA4: 6 | AB4: 1 | AC4: 2 | AD4: 3 | AE4: 4 | AF4: 5 | AG4: 6 | AH4: 1 | AI4: 2 | AJ4: 3 | AK4: 4 | AL4: 5 | AM4: 6
B5: =MAX(VLOOKUP(Report_4W!B5,tKategorien[],3),VLOOKUP(Report_4W!C5,tKategorien[[Limit diast. ]:[Kat.]],2)) ->  | C5: =MAX(VLOOKUP(Report_4W!E5,tKategorien[],3),VLOOKUP(Report_4W!F5,tKategorien[[Limit diast. ]:[Kat.]],2)) ->  | D5: =MAX(VLOOKUP(Report_4W!H5,tKategorien[],3),VLOOKUP(Report_4W!I5,tKategorien[[Limit diast. ]:[Kat.]],2)) ->  | H5: =Start_4W -> 2019-04-22 | I5: Morgen | J5: =INT(H5)+0.25 -> 43577.25 | K5: =VLOOKUP(tSequence[[#This Row],[Datum2]],tData[[Sort]:[Puls]],2,FALSE) ->  | L5: =VLOOKUP(tSequence[[#This Row],[Datum2]],tData[[Sort]:[Puls]],3,FALSE) ->  | M5: =VLOOKUP(tSequence[[#This Row],[Datum2]],tData[[Sort]:[Puls]],4,FALSE) ->  | N5: =MAX(VLOOKUP($K5,tKategorien[],3),VLOOKUP($L5,tKategorien[[Limit diast. ]:[Kat.]],2)) ->  | O5: =MAX(VLOOKUP($K6,tKategorien[],3),VLOOKUP($L6,tKategorien[[Limit diast. ]:[Kat.]],2)) ->  | P5: =MAX(VLOOKUP($K7,tKategorien[],3),VLOOKUP($L7,tKategorien[[Limit diast. ]:[Kat.]],2)) ->  | V5: Morgens | W5: Morgens | X5: Morgens | Y5: Morgens | Z5: Morgens | AA5: Morgens | AB5: Mittags | AC5: Mittags | AD5: Mittags | AE5: Mittags | AF5: Mittags | AG5: Mittags | AH5: Abends | AI5: Abends | AJ5: Abends | AK5: Abends | AL5: Abends | AM5: Abends
B6: =MAX(VLOOKUP(Report_4W!B6,tKategorien[],3),VLOOKUP(Report_4W!C6,tKategorien[[Limit diast. ]:[Kat.]],2)) ->  | C6: =MAX(VLOOKUP(Report_4W!E6,tKategorien[],3),VLOOKUP(Report_4W!F6,tKategorien[[Limit diast. ]:[Kat.]],2)) ->  | D6: =MAX(VLOOKUP(Report_4W!H6,tKategorien[],3),VLOOKUP(Report_4W!I6,tKategorien[[Limit diast. ]:[Kat.]],2)) ->  | H6: =INT($H$5+(ROW()-5)/3) -> 2019-04-22 | I6: Mittag | J6: =INT(H6)+0.5 -> 43577.5 | K6: =VLOOKUP(tSequence[[#This Row],[Datum2]],tData[[Sort]:[Puls]],2,FALSE) ->  | L6: =VLOOKUP(tSequence[[#This Row],[Datum2]],tData[[Sort]:[Puls]],3,FALSE) ->  | M6: =VLOOKUP(tSequence[[#This Row],[Datum2]],tData[[Sort]:[Puls]],4,FALSE) ->  | V6: Kat.1 | W6: Kat.2 | X6: Kat.3 | Y6: Kat.4 | Z6: Kat.5 | AA6: Kat.6 | AB6: Kat.1 | AC6: Kat.2 | AD6: Kat.3 | AE6: Kat.4 | AF6: Kat.5 | AG6: Kat.6 | AH6: Kat.1 | AI6: Kat.2 | AJ6: Kat.3 | AK6: Kat.4 | AL6: Kat.5 | AM6: Kat.6
B7: =MAX(VLOOKUP(Report_4W!B7,tKategorien[],3),VLOOKUP(Report_4W!C7,tKategorien[[Limit diast. ]:[Kat.]],2)) ->  | C7: =MAX(VLOOKUP(Report_4W!E7,tKategorien[],3),VLOOKUP(Report_4W!F7,tKategorien[[Limit diast. ]:[Kat.]],2)) ->  | D7: =MAX(VLOOKUP(Report_4W!H7,tKategorien[],3),VLOOKUP(Report_4W!I7,tKategorien[[Limit diast. ]:[Kat.]],2)) ->  | H7: 2019-04-22 | I7: Abend | J7: =INT(H7)+0.75 -> 43577.75 | K7: =VLOOKUP(tSequence[[#This Row],[Datum2]],tData[[Sort]:[Puls]],2,FALSE) ->  | L7: =VLOOKUP(tSequence[[#This Row],[Datum2]],tData[[Sort]:[Puls]],3,FALSE) ->  | M7: =VLOOKUP(tSequence[[#This Row],[Datum2]],tData[[Sort]:[Puls]],4,FALSE) -> 
B8: =MAX(VLOOKUP(Report_4W!B8,tKategorien[],3),VLOOKUP(Report_4W!C8,tKategorien[[Limit diast. ]:[Kat.]],2)) ->  | C8: =MAX(VLOOKUP(Report_4W!E8,tKategorien[],3),VLOOKUP(Report_4W!F8,tKategorien[[Limit diast. ]:[Kat.]],2)) ->  | D8: =MAX(VLOOKUP(Report_4W!H8,tKategorien[],3),VLOOKUP(Report_4W!I8,tKategorien[[Limit diast. ]:[Kat.]],2)) ->  | H8: 2019-04-23 | I8: Morgen | J8: =INT(H8)+0.25 -> 43578.25 | K8: =VLOOKUP(tSequence[[#This Row],[Datum2]],tData[[Sort]:[Puls]],2,FALSE) ->  | L8: =VLOOKUP(tSequence[[#This Row],[Datum2]],tData[[Sort]:[Puls]],3,FALSE) ->  | M8: =VLOOKUP(tSequence[[#This Row],[Datum2]],tData[[Sort]:[Puls]],4,FALSE) ->  | N8: =MAX(VLOOKUP($K8,tKategorien[],3),VLOOKUP($L8,tKategorien[[Limit diast. ]:[Kat.]],2)) ->  | O8: =MAX(VLOOKUP($K9,tKategorien[],3),VLOOKUP($L9,tKategorien[[Limit diast. ]:[Kat.]],2)) ->  | P8: =MAX(VLOOKUP($K10,tKategorien[],3),VLOOKUP($L10,tKategorien[[Limit diast. ]:[Kat.]],2)) ->  | T8: =WEEKNUM(Start_4W,21)&"/"&YEAR(Start_4W) -> 17/2019 | U8: Morgens | V8: =COUNTIF(intermediate!$N$5:$N$25,V$4) -> 0 | W8: =COUNTIF(intermediate!$N$5:$N$25,W$4) -> 0 | X8: =COUNTIF(intermediate!$N$5:$N$25,X$4) -> 0 | Y8: =COUNTIF(intermediate!$N$5:$N$25,Y$4) -> 0 | Z8: =COUNTIF(intermediate!$N$5:$N$25,Z$4) -> 0 | AA8: =COUNTIF(intermediate!$N$5:$N$25,AA$4) -> 0
B9: =MAX(VLOOKUP(Report_4W!B9,tKategorien[],3),VLOOKUP(Report_4W!C9,tKategorien[[Limit diast. ]:[Kat.]],2)) ->  | C9: =MAX(VLOOKUP(Report_4W!E9,tKategorien[],3),VLOOKUP(Report_4W!F9,tKategorien[[Limit diast. ]:[Kat.]],2)) ->  | D9: =MAX(VLOOKUP(Report_4W!H9,tKategorien[],3),VLOOKUP(Report_4W!I9,tKategorien[[Limit diast. ]:[Kat.]],2)) ->  | H9: 2019-04-23 | I9: Mittag | J9: =INT(H9)+0.5 -> 43578.5 | K9: =VLOOKUP(tSequence[[#This Row],[Datum2]],tData[[Sort]:[Puls]],2,FALSE) ->  | L9: =VLOOKUP(tSequence[[#This Row],[Datum2]],tData[[Sort]:[Puls]],3,FALSE) ->  | M9: =VLOOKUP(tSequence[[#This Row],[Datum2]],tData[[Sort]:[Puls]],4,FALSE) ->  | U9: Mittags | AB9: =COUNTIF(intermediate!$O$5:$O$25,AB$4) -> 0 | AC9: =COUNTIF(intermediate!$O$5:$O$25,AC$4) -> 0 | AD9: =COUNTIF(intermediate!$O$5:$O$25,AD$4) -> 0 | AE9: =COUNTIF(intermediate!$O$5:$O$25,AE$4) -> 0 | AF9: =COUNTIF(intermediate!$O$5:$O$25,AF$4) -> 0 | AG9: =COUNTIF(intermediate!$O$5:$O$25,AG$4) -> 0
B10: =MAX(VLOOKUP(Report_4W!B10,tKategorien[],3),VLOOKUP(Report_4W!C10,tKategorien[[Limit diast. ]:[Kat.]],2)) ->  | C10: =MAX(VLOOKUP(Report_4W!E10,tKategorien[],3),VLOOKUP(Report_4W!F10,tKategorien[[Limit diast. ]:[Kat.]],2)) ->  | D10: =MAX(VLOOKUP(Report_4W!H10,tKategorien[],3),VLOOKUP(Report_4W!I10,tKategorien[[Limit diast. ]:[Kat.]],2)) ->  | H10: 2019-04-23 | I10: Abend | J10: =INT(H10)+0.75 -> 43578.75 | K10: =VLOOKUP(tSequence[[#This Row],[Datum2]],tData[[Sort]:[Puls]],2,FALSE) ->  | L10: =VLOOKUP(tSequence[[#This Row],[Datum2]],tData[[Sort]:[Puls]],3,FALSE) ->  | M10: =VLOOKUP(tSequence[[#This Row],[Datum2]],tData[[Sort]:[Puls]],4,FALSE) ->  | U10: Abends | AH10: =COUNTIF(intermediate!$P$5:$P$25,AH$4) -> 0 | AI10: =COUNTIF(intermediate!$P$5:$P$25,AI$4) -> 0 | AJ10: =COUNTIF(intermediate!$P$5:$P$25,AJ$4) -> 0 | AK10: =COUNTIF(intermediate!$P$5:$P$25,AK$4) -> 0 | AL10: =COUNTIF(intermediate!$P$5:$P$25,AL$4) -> 0 | AM10: =COUNTIF(intermediate!$P$5:$P$25,AM$4) -> 0
B11: =MAX(VLOOKUP(Report_4W!B11,tKategorien[],3),VLOOKUP(Report_4W!C11,tKategorien[[Limit diast. ]:[Kat.]],2)) ->  | C11: =MAX(VLOOKUP(Report_4W!E11,tKategorien[],3),VLOOKUP(Report_4W!F11,tKategorien[[Limit diast. ]:[Kat.]],2)) ->  | D11: =MAX(VLOOKUP(Report_4W!H11,tKategorien[],3),VLOOKUP(Report_4W!I11,tKategorien[[Limit diast. ]:[Kat.]],2)) ->  | H11: 2019-04-24 | I11: Morgen | J11: =INT(H11)+0.25 -> 43579.25 | K11: =VLOOKUP(tSequence[[#This Row],[Datum2]],tData[[Sort]:[Puls]],2,FALSE) ->  | L11: =VLOOKUP(tSequence[[#This Row],[Datum2]],tData[[Sort]:[Puls]],3,FALSE) ->  | M11: =VLOOKUP(tSequence[[#This Row],[Datum2]],tData[[Sort]:[Puls]],4,FALSE) ->  | N11: =MAX(VLOOKUP($K11,tKategorien[],3),VLOOKUP($L11,tKategorien[[Limit diast. ]:[Kat.]],2)) ->  | O11: =MAX(VLOOKUP($K12,tKategorien[],3),VLOOKUP($L12,tKategorien[[Limit diast. ]:[Kat.]],2)) ->  | P11: =MAX(VLOOKUP($K13,tKategorien[],3),VLOOKUP($L13,tKategorien[[Limit diast. ]:[Kat.]],2)) -> 
B12: =MAX(VLOOKUP(Report_4W!B12,tKategorien[],3),VLOOKUP(Report_4W!C12,tKategorien[[Limit diast. ]:[Kat.]],2)) ->  | C12: =MAX(VLOOKUP(Report_4W!E12,tKategorien[],3),VLOOKUP(Report_4W!F12,tKategorien[[Limit diast. ]:[Kat.]],2)) ->  | D12: =MAX(VLOOKUP(Report_4W!H12,tKategorien[],3),VLOOKUP(Report_4W!I12,tKategorien[[Limit diast. ]:[Kat.]],2)) ->  | H12: 2019-04-24 | I12: Mittag | J12: =INT(H12)+0.5 -> 43579.5 | K12: =VLOOKUP(tSequence[[#This Row],[Datum2]],tData[[Sort]:[Puls]],2,FALSE) ->  | L12: =VLOOKUP(tSequence[[#This Row],[Datum2]],tData[[Sort]:[Puls]],3,FALSE) ->  | M12: =VLOOKUP(tSequence[[#This Row],[Datum2]],tData[[Sort]:[Puls]],4,FALSE) ->  | T12: =WEEKNUM(Start_4W,21)+1&"/"&YEAR(Start_4W) -> 18/2019 | U12: Morgens | V12: =COUNTIF(intermediate!$N$26:$N$46,V$4) -> 0 | W12: =COUNTIF(intermediate!$N$26:$N$46,W$4) -> 0 | X12: =COUNTIF(intermediate!$N$26:$N$46,X$4) -> 0 | Y12: =COUNTIF(intermediate!$N$26:$N$46,Y$4) -> 0 | Z12: =COUNTIF(intermediate!$N$26:$N$46,Z$4) -> 0 | AA12: =COUNTIF(intermediate!$N$26:$N$46,AA$4) -> 0
B13: =MAX(VLOOKUP(Report_4W!B13,tKategorien[],3),VLOOKUP(Report_4W!C13,tKategorien[[Limit diast. ]:[Kat.]],2)) ->  | C13: =MAX(VLOOKUP(Report_4W!E13,tKategorien[],3),VLOOKUP(Report_4W!F13,tKategorien[[Limit diast. ]:[Kat.]],2)) ->  | D13: =MAX(VLOOKUP(Report_4W!H13,tKategorien[],3),VLOOKUP(Report_4W!I13,tKategorien[[Limit diast. ]:[Kat.]],2)) ->  | H13: 2019-04-24 | I13: Abend | J13: =INT(H13)+0.75 -> 43579.75 | K13: =VLOOKUP(tSequence[[#This Row],[Datum2]],tData[[Sort]:[Puls]],2,FALSE) ->  | L13: =VLOOKUP(tSequence[[#This Row],[Datum2]],tData[[Sort]:[Puls]],3,FALSE) ->  | M13: =VLOOKUP(tSequence[[#This Row],[Datum2]],tData[[Sort]:[Puls]],4,FALSE) ->  | U13: Mittags | AB13: =COUNTIF(intermediate!$O$26:$O$46,AB$4) -> 0 | AC13: =COUNTIF(intermediate!$O$26:$O$46,AC$4) -> 0 | AD13: =COUNTIF(intermediate!$O$26:$O$46,AD$4) -> 0 | AE13: =COUNTIF(intermediate!$O$26:$O$46,AE$4) -> 0 | AF13: =COUNTIF(intermediate!$O$26:$O$46,AF$4) -> 0 | AG13: =COUNTIF(intermediate!$O$26:$O$46,AG$4) -> 0
B14: =MAX(VLOOKUP(Report_4W!B14,tKategorien[],3),VLOOKUP(Report_4W!C14,tKategorien[[Limit diast. ]:[Kat.]],2)) ->  | C14: =MAX(VLOOKUP(Report_4W!E14,tKategorien[],3),VLOOKUP(Report_4W!F14,tKategorien[[Limit diast. ]:[Kat.]],2)) ->  | D14: =MAX(VLOOKUP(Report_4W!H14,tKategorien[],3),VLOOKUP(Report_4W!I14,tKategorien[[Limit diast. ]:[Kat.]],2)) ->  | H14: 2019-04-25 | I14: Morgen | J14: =INT(H14)+0.25 -> 43580.25 | K14: =VLOOKUP(tSequence[[#This Row],[Datum2]],tData[[Sort]:[Puls]],2,FALSE) ->  | L14: =VLOOKUP(tSequence[[#This Row],[Datum2]],tData[[Sort]:[Puls]],3,FALSE) ->  | M14: =VLOOKUP(tSequence[[#This Row],[Datum2]],tData[[Sort]:[Puls]],4,FALSE) ->  | N14: =MAX(VLOOKUP($K14,tKategorien[],3),VLOOKUP($L14,tKategorien[[Limit diast. ]:[Kat.]],2)) ->  | O14: =MAX(VLOOKUP($K15,tKategorien[],3),VLOOKUP($L15,tKategorien[[Limit diast. ]:[Kat.]],2)) ->  | P14: =MAX(VLOOKUP($K16,tKategorien[],3),VLOOKUP($L16,tKategorien[[Limit diast. ]:[Kat.]],2)) ->  | U14: Abends | AH14: =COUNTIF(intermediate!$P$26:$P$46,AH$4) -> 0 | AI14: =COUNTIF(intermediate!$P$26:$P$46,AI$4) -> 0 | AJ14: =COUNTIF(intermediate!$P$26:$P$46,AJ$4) -> 0 | AK14: =COUNTIF(intermediate!$P$26:$P$46,AK$4) -> 0 | AL14: =COUNTIF(intermediate!$P$26:$P$46,AL$4) -> 0 | AM14: =COUNTIF(intermediate!$P$26:$P$46,AM$4) -> 0
B15: =MAX(VLOOKUP(Report_4W!B15,tKategorien[],3),VLOOKUP(Report_4W!C15,tKategorien[[Limit diast. ]:[Kat.]],2)) ->  | C15: =MAX(VLOOKUP(Report_4W!E15,tKategorien[],3),VLOOKUP(Report_4W!F15,tKategorien[[Limit diast. ]:[Kat.]],2)) ->  | D15: =MAX(VLOOKUP(Report_4W!H15,tKategorien[],3),VLOOKUP(Report_4W!I15,tKategorien[[Limit diast. ]:[Kat.]],2)) ->  | H15: 2019-04-25 | I15: Mittag | J15: =INT(H15)+0.5 -> 43580.5 | K15: =VLOOKUP(tSequence[[#This Row],[Datum2]],tData[[Sort]:[Puls]],2,FALSE) ->  | L15: =VLOOKUP(tSequence[[#This Row],[Datum2]],tData[[Sort]:[Puls]],3,FALSE) ->  | M15: =VLOOKUP(tSequence[[#This Row],[Datum2]],tData[[Sort]:[Puls]],4,FALSE) -> 
B16: =MAX(VLOOKUP(Report_4W!B16,tKategorien[],3),VLOOKUP(Report_4W!C16,tKategorien[[Limit diast. ]:[Kat.]],2)) ->  | C16: =MAX(VLOOKUP(Report_4W!E16,tKategorien[],3),VLOOKUP(Report_4W!F16,tKategorien[[Limit diast. ]:[Kat.]],2)) ->  | D16: =MAX(VLOOKUP(Report_4W!H16,tKategorien[],3),VLOOKUP(Report_4W!I16,tKategorien[[Limit diast. ]:[Kat.]],2)) ->  | H16: 2019-04-25 | I16: Abend | J16: =INT(H16)+0.75 -> 43580.75 | K16: =VLOOKUP(tSequence[[#This Row],[Datum2]],tData[[Sort]:[Puls]],2,FALSE) ->  | L16: =VLOOKUP(tSequence[[#This Row],[Datum2]],tData[[Sort]:[Puls]],3,FALSE) ->  | M16: =VLOOKUP(tSequence[[#This Row],[Datum2]],tData[[Sort]:[Puls]],4,FALSE) ->  | T16: =WEEKNUM(Start_4W,21)+2&"/"&YEAR(Start_4W) -> 19/2019 | U16: Morgens | V16: =COUNTIF(intermediate!$N$47:$N$67,V$4) -> 0 | W16: =COUNTIF(intermediate!$N$47:$N$67,W$4) -> 0 | X16: =COUNTIF(intermediate!$N$47:$N$67,X$4) -> 0 | Y16: =COUNTIF(intermediate!$N$47:$N$67,Y$4) -> 0 | Z16: =COUNTIF(intermediate!$N$47:$N$67,Z$4) -> 0 | AA16: =COUNTIF(intermediate!$N$47:$N$67,AA$4) -> 0
B17: =MAX(VLOOKUP(Report_4W!B17,tKategorien[],3),VLOOKUP(Report_4W!C17,tKategorien[[Limit diast. ]:[Kat.]],2)) ->  | C17: =MAX(VLOOKUP(Report_4W!E17,tKategorien[],3),VLOOKUP(Report_4W!F17,tKategorien[[Limit diast. ]:[Kat.]],2)) ->  | D17: =MAX(VLOOKUP(Report_4W!H17,tKategorien[],3),VLOOKUP(Report_4W!I17,tKategorien[[Limit diast. ]:[Kat.]],2)) ->  | H17: 2019-04-26 | I17: Morgen | J17: =INT(H17)+0.25 -> 43581.25 | K17: =VLOOKUP(tSequence[[#This Row],[Datum2]],tData[[Sort]:[Puls]],2,FALSE) ->  | L17: =VLOOKUP(tSequence[[#This Row],[Datum2]],tData[[Sort]:[Puls]],3,FALSE) ->  | M17: =VLOOKUP(tSequence[[#This Row],[Datum2]],tData[[Sort]:[Puls]],4,FALSE) ->  | N17: =MAX(VLOOKUP($K17,tKategorien[],3),VLOOKUP($L17,tKategorien[[Limit diast. ]:[Kat.]],2)) ->  | O17: =MAX(VLOOKUP($K18,tKategorien[],3),VLOOKUP($L18,tKategorien[[Limit diast. ]:[Kat.]],2)) ->  | P17: =MAX(VLOOKUP($K19,tKategorien[],3),VLOOKUP($L19,tKategorien[[Limit diast. ]:[Kat.]],2)) ->  | U17: Mittags | AB17: =COUNTIF(intermediate!$O$47:$O$67,AB$4) -> 0 | AC17: =COUNTIF(intermediate!$O$47:$O$67,AC$4) -> 0 | AD17: =COUNTIF(intermediate!$O$47:$O$67,AD$4) -> 0 | AE17: =COUNTIF(intermediate!$O$47:$O$67,AE$4) -> 0 | AF17: =COUNTIF(intermediate!$O$47:$O$67,AF$4) -> 0 | AG17: =COUNTIF(intermediate!$O$47:$O$67,AG$4) -> 0
B18: =MAX(VLOOKUP(Report_4W!B18,tKategorien[],3),VLOOKUP(Report_4W!C18,tKategorien[[Limit diast. ]:[Kat.]],2)) ->  | C18: =MAX(VLOOKUP(Report_4W!E18,tKategorien[],3),VLOOKUP(Report_4W!F18,tKategorien[[Limit diast. ]:[Kat.]],2)) ->  | D18: =MAX(VLOOKUP(Report_4W!H18,tKategorien[],3),VLOOKUP(Report_4W!I18,tKategorien[[Limit diast. ]:[Kat.]],2)) ->  | H18: 2019-04-26 | I18: Mittag | J18: =INT(H18)+0.5 -> 43581.5 | K18: =VLOOKUP(tSequence[[#This Row],[Datum2]],tData[[Sort]:[Puls]],2,FALSE) ->  | L18: =VLOOKUP(tSequence[[#This Row],[Datum2]],tData[[Sort]:[Puls]],3,FALSE) ->  | M18: =VLOOKUP(tSequence[[#This Row],[Datum2]],tData[[Sort]:[Puls]],4,FALSE) ->  | U18: Abends | AH18: =COUNTIF(intermediate!$P$47:$P$67,AH$4) -> 0 | AI18: =COUNTIF(intermediate!$P$47:$P$67,AI$4) -> 0 | AJ18: =COUNTIF(intermediate!$P$47:$P$67,AJ$4) -> 0 | AK18: =COUNTIF(intermediate!$P$47:$P$67,AK$4) -> 0 | AL18: =COUNTIF(intermediate!$P$47:$P$67,AL$4) -> 0 | AM18: =COUNTIF(intermediate!$P$47:$P$67,AM$4) -> 0
B19: =MAX(VLOOKUP(Report_4W!B19,tKategorien[],3),VLOOKUP(Report_4W!C19,tKategorien[[Limit diast. ]:[Kat.]],2)) ->  | C19: =MAX(VLOOKUP(Report_4W!E19,tKategorien[],3),VLOOKUP(Report_4W!F19,tKategorien[[Limit diast. ]:[Kat.]],2)) ->  | D19: =MAX(VLOOKUP(Report_4W!H19,tKategorien[],3),VLOOKUP(Report_4W!I19,tKategorien[[Limit diast. ]:[Kat.]],2)) ->  | H19: 2019-04-26 | I19: Abend | J19: =INT(H19)+0.75 -> 43581.75 | K19: =VLOOKUP(tSequence[[#This Row],[Datum2]],tData[[Sort]:[Puls]],2,FALSE) ->  | L19: =VLOOKUP(tSequence[[#This Row],[Datum2]],tData[[Sort]:[Puls]],3,FALSE) ->  | M19: =VLOOKUP(tSequence[[#This Row],[Datum2]],tData[[Sort]:[Puls]],4,FALSE) -> 
B20: =MAX(VLOOKUP(Report_4W!B20,tKategorien[],3),VLOOKUP(Report_4W!C20,tKategorien[[Limit diast. ]:[Kat.]],2)) ->  | C20: =MAX(VLOOKUP(Report_4W!E20,tKategorien[],3),VLOOKUP(Report_4W!F20,tKategorien[[Limit diast. ]:[Kat.]],2)) ->  | D20: =MAX(VLOOKUP(Report_4W!H20,tKategorien[],3),VLOOKUP(Report_4W!I20,tKategorien[[Limit diast. ]:[Kat.]],2)) ->  | H20: 2019-04-27 | I20: Morgen | J20: =INT(H20)+0.25 -> 43582.25 | K20: =VLOOKUP(tSequence[[#This Row],[Datum2]],tData[[Sort]:[Puls]],2,FALSE) ->  | L20: =VLOOKUP(tSequence[[#This Row],[Datum2]],tData[[Sort]:[Puls]],3,FALSE) ->  | M20: =VLOOKUP(tSequence[[#This Row],[Datum2]],tData[[Sort]:[Puls]],4,FALSE) ->  | N20: =MAX(VLOOKUP($K20,tKategorien[],3),VLOOKUP($L20,tKategorien[[Limit diast. ]:[Kat.]],2)) ->  | O20: =MAX(VLOOKUP($K21,tKategorien[],3),VLOOKUP($L21,tKategorien[[Limit diast. ]:[Kat.]],2)) ->  | P20: =MAX(VLOOKUP($K22,tKategorien[],3),VLOOKUP($L22,tKategorien[[Limit diast. ]:[Kat.]],2)) ->  | T20: =WEEKNUM(Start_4W,21)+3&"/"&YEAR(Start_4W) -> 20/2019 | U20: Morgens | V20: =COUNTIF(intermediate!$N$68:$N$88,V$4) -> 0 | W20: =COUNTIF(intermediate!$N$68:$N$88,W$4) -> 0 | X20: =COUNTIF(intermediate!$N$68:$N$88,X$4) -> 0 | Y20: =COUNTIF(intermediate!$N$68:$N$88,Y$4) -> 0 | Z20: =COUNTIF(intermediate!$N$68:$N$88,Z$4) -> 0 | AA20: =COUNTIF(intermediate!$N$68:$N$88,AA$4) -> 0
B21: =MAX(VLOOKUP(Report_4W!B21,tKategorien[],3),VLOOKUP(Report_4W!C21,tKategorien[[Limit diast. ]:[Kat.]],2)) ->  | C21: =MAX(VLOOKUP(Report_4W!E21,tKategorien[],3),VLOOKUP(Report_4W!F21,tKategorien[[Limit diast. ]:[Kat.]],2)) ->  | D21: =MAX(VLOOKUP(Report_4W!H21,tKategorien[],3),VLOOKUP(Report_4W!I21,tKategorien[[Limit diast. ]:[Kat.]],2)) ->  | H21: 2019-04-27 | I21: Mittag | J21: =INT(H21)+0.5 -> 43582.5 | K21: =VLOOKUP(tSequence[[#This Row],[Datum2]],tData[[Sort]:[Puls]],2,FALSE) ->  | L21: =VLOOKUP(tSequence[[#This Row],[Datum2]],tData[[Sort]:[Puls]],3,FALSE) ->  | M21: =VLOOKUP(tSequence[[#This Row],[Datum2]],tData[[Sort]:[Puls]],4,FALSE) ->  | U21: Mittags | AB21: =COUNTIF(intermediate!$O$68:$O$88,AB$4) -> 0 | AC21: =COUNTIF(intermediate!$O$68:$O$88,AC$4) -> 0 | AD21: =COUNTIF(intermediate!$O$68:$O$88,AD$4) -> 0 | AE21: =COUNTIF(intermediate!$O$68:$O$88,AE$4) -> 0 | AF21: =COUNTIF(intermediate!$O$68:$O$88,AF$4) -> 0 | AG21: =COUNTIF(intermediate!$O$68:$O$88,AG$4) -> 0
B22: =MAX(VLOOKUP(Report_4W!B22,tKategorien[],3),VLOOKUP(Report_4W!C22,tKategorien[[Limit diast. ]:[Kat.]],2)) ->  | C22: =MAX(VLOOKUP(Report_4W!E22,tKategorien[],3),VLOOKUP(Report_4W!F22,tKategorien[[Limit diast. ]:[Kat.]],2)) ->  | D22: =MAX(VLOOKUP(Report_4W!H22,tKategorien[],3),VLOOKUP(Report_4W!I22,tKategorien[[Limit diast. ]:[Kat.]],2)) ->  | H22: 2019-04-27 | I22: Abend | J22: =INT(H22)+0.75 -> 43582.75 | K22: =VLOOKUP(tSequence[[#This Row],[Datum2]],tData[[Sort]:[Puls]],2,FALSE) ->  | L22: =VLOOKUP(tSequence[[#This Row],[Datum2]],tData[[Sort]:[Puls]],3,FALSE) ->  | M22: =VLOOKUP(tSequence[[#This Row],[Datum2]],tData[[Sort]:[Puls]],4,FALSE) ->  | U22: Abends | AH22: =COUNTIF(intermediate!$P$68:$P$88,AH$4) -> 0 | AI22: =COUNTIF(intermediate!$P$68:$P$88,AI$4) -> 0 | AJ22: =COUNTIF(intermediate!$P$68:$P$88,AJ$4) -> 0 | AK22: =COUNTIF(intermediate!$P$68:$P$88,AK$4) -> 0 | AL22: =COUNTIF(intermediate!$P$68:$P$88,AL$4) -> 0 | AM22: =COUNTIF(intermediate!$P$68:$P$88,AM$4) -> 0
B23: =MAX(VLOOKUP(Report_4W!B23,tKategorien[],3),VLOOKUP(Report_4W!C23,tKategorien[[Limit diast. ]:[Kat.]],2)) ->  | C23: =MAX(VLOOKUP(Report_4W!E23,tKategorien[],3),VLOOKUP(Report_4W!F23,tKategorien[[Limit diast. ]:[Kat.]],2)) ->  | D23: =MAX(VLOOKUP(Report_4W!H23,tKategorien[],3),VLOOKUP(Report_4W!I23,tKategorien[[Limit diast. ]:[Kat.]],2)) ->  | H23: 2019-04-28 | I23: Morgen | J23: =INT(H23)+0.25 -> 43583.25 | K23: =VLOOKUP(tSequence[[#This Row],[Datum2]],tData[[Sort]:[Puls]],2,FALSE) ->  | L23: =VLOOKUP(tSequence[[#This Row],[Datum2]],tData[[Sort]:[Puls]],3,FALSE) ->  | M23: =VLOOKUP(tSequence[[#This Row],[Datum2]],tData[[Sort]:[Puls]],4,FALSE) ->  | N23: =MAX(VLOOKUP($K23,tKategorien[],3),VLOOKUP($L23,tKategorien[[Limit diast. ]:[Kat.]],2)) ->  | O23: =MAX(VLOOKUP($K24,tKategorien[],3),VLOOKUP($L24,tKategorien[[Limit diast. ]:[Kat.]],2)) ->  | P23: =MAX(VLOOKUP($K25,tKategorien[],3),VLOOKUP($L25,tKategorien[[Limit diast. ]:[Kat.]],2)) -> 
B24: =MAX(VLOOKUP(Report_4W!B24,tKategorien[],3),VLOOKUP(Report_4W!C24,tKategorien[[Limit diast. ]:[Kat.]],2)) ->  | C24: =MAX(VLOOKUP(Report_4W!E24,tKategorien[],3),VLOOKUP(Report_4W!F24,tKategorien[[Limit diast. ]:[Kat.]],2)) ->  | D24: =MAX(VLOOKUP(Report_4W!H24,tKategorien[],3),VLOOKUP(Report_4W!I24,tKategorien[[Limit diast. ]:[Kat.]],2)) ->  | H24: 2019-04-28 | I24: Mittag | J24: =INT(H24)+0.5 -> 43583.5 | K24: =VLOOKUP(tSequence[[#This Row],[Datum2]],tData[[Sort]:[Puls]],2,FALSE) ->  | L24: =VLOOKUP(tSequence[[#This Row],[Datum2]],tData[[Sort]:[Puls]],3,FALSE) ->  | M24: =VLOOKUP(tSequence[[#This Row],[Datum2]],tData[[Sort]:[Puls]],4,FALSE) -> 
B25: =MAX(VLOOKUP(Report_4W!B25,tKategorien[],3),VLOOKUP(Report_4W!C25,tKategorien[[Limit diast. ]:[Kat.]],2)) ->  | C25: =MAX(VLOOKUP(Report_4W!E25,tKategorien[],3),VLOOKUP(Report_4W!F25,tKategorien[[Limit diast. ]:[Kat.]],2)) ->  | D25: =MAX(VLOOKUP(Report_4W!H25,tKategorien[],3),VLOOKUP(Report_4W!I25,tKategorien[[Limit diast. ]:[Kat.]],2)) ->  | H25: 2019-04-28 | I25: Abend | J25: =INT(H25)+0.75 -> 43583.75 | K25: =VLOOKUP(tSequence[[#This Row],[Datum2]],tData[[Sort]:[Puls]],2,FALSE) ->  | L25: =VLOOKUP(tSequence[[#This Row],[Datum2]],tData[[Sort]:[Puls]],3,FALSE) ->  | M25: =VLOOKUP(tSequence[[#This Row],[Datum2]],tData[[Sort]:[Puls]],4,FALSE) -> 
B26: =MAX(VLOOKUP(Report_4W!B26,tKategorien[],3),VLOOKUP(Report_4W!C26,tKategorien[[Limit diast. ]:[Kat.]],2)) ->  | C26: =MAX(VLOOKUP(Report_4W!E26,tKategorien[],3),VLOOKUP(Report_4W!F26,tKategorien[[Limit diast. ]:[Kat.]],2)) ->  | D26: =MAX(VLOOKUP(Report_4W!H26,tKategorien[],3),VLOOKUP(Report_4W!I26,tKategorien[[Limit diast. ]:[Kat.]],2)) ->  | H26: 2019-04-29 | I26: Morgen | J26: =INT(H26)+0.25 -> 43584.25 | K26: =VLOOKUP(tSequence[[#This Row],[Datum2]],tData[[Sort]:[Puls]],2,FALSE) ->  | L26: =VLOOKUP(tSequence[[#This Row],[Datum2]],tData[[Sort]:[Puls]],3,FALSE) ->  | M26: =VLOOKUP(tSequence[[#This Row],[Datum2]],tData[[Sort]:[Puls]],4,FALSE) ->  | N26: =MAX(VLOOKUP($K26,tKategorien[],3),VLOOKUP($L26,tKategorien[[Limit diast. ]:[Kat.]],2)) ->  | O26: =MAX(VLOOKUP($K27,tKategorien[],3),VLOOKUP($L27,tKategorien[[Limit diast. ]:[Kat.]],2)) ->  | P26: =MAX(VLOOKUP($K28,tKategorien[],3),VLOOKUP($L28,tKategorien[[Limit diast. ]:[Kat.]],2)) -> 
B27: =MAX(VLOOKUP(Report_4W!B27,tKategorien[],3),VLOOKUP(Report_4W!C27,tKategorien[[Limit diast. ]:[Kat.]],2)) ->  | C27: =MAX(VLOOKUP(Report_4W!E27,tKategorien[],3),VLOOKUP(Report_4W!F27,tKategorien[[Limit diast. ]:[Kat.]],2)) ->  | D27: =MAX(VLOOKUP(Report_4W!H27,tKategorien[],3),VLOOKUP(Report_4W!I27,tKategorien[[Limit diast. ]:[Kat.]],2)) ->  | H27: 2019-04-29 | I27: Mittag | J27: =INT(H27)+0.5 -> 43584.5 | K27: =VLOOKUP(tSequence[[#This Row],[Datum2]],tData[[Sort]:[Puls]],2,FALSE) ->  | L27: =VLOOKUP(tSequence[[#This Row],[Datum2]],tData[[Sort]:[Puls]],3,FALSE) ->  | M27: =VLOOKUP(tSequence[[#This Row],[Datum2]],tData[[Sort]:[Puls]],4,FALSE) -> 
B28: =MAX(VLOOKUP(Report_4W!B28,tKategorien[],3),VLOOKUP(Report_4W!C28,tKategorien[[Limit diast. ]:[Kat.]],2)) ->  | C28: =MAX(VLOOKUP(Report_4W!E28,tKategorien[],3),VLOOKUP(Report_4W!F28,tKategorien[[Limit diast. ]:[Kat.]],2)) ->  | D28: =MAX(VLOOKUP(Report_4W!H28,tKategorien[],3),VLOOKUP(Report_4W!I28,tKategorien[[Limit diast. ]:[Kat.]],2)) ->  | H28: 2019-04-29 | I28: Abend | J28: =INT(H28)+0.75 -> 43584.75 | K28: =VLOOKUP(tSequence[[#This Row],[Datum2]],tData[[Sort]:[Puls]],2,FALSE) ->  | L28: =VLOOKUP(tSequence[[#This Row],[Datum2]],tData[[Sort]:[Puls]],3,FALSE) ->  | M28: =VLOOKUP(tSequence[[#This Row],[Datum2]],tData[[Sort]:[Puls]],4,FALSE) -> 
B29: =MAX(VLOOKUP(Report_4W!B29,tKategorien[],3),VLOOKUP(Report_4W!C29,tKategorien[[Limit diast. ]:[Kat.]],2)) ->  | C29: =MAX(VLOOKUP(Report_4W!E29,tKategorien[],3),VLOOKUP(Report_4W!F29,tKategorien[[Limit diast. ]:[Kat.]],2)) ->  | D29: =MAX(VLOOKUP(Report_4W!H29,tKategorien[],3),VLOOKUP(Report_4W!I29,tKategorien[[Limit diast. ]:[Kat.]],2)) ->  | H29: 2019-04-30 | I29: Morgen | J29: =INT(H29)+0.25 -> 43585.25 | K29: =VLOOKUP(tSequence[[#This Row],[Datum2]],tData[[Sort]:[Puls]],2,FALSE) ->  | L29: =VLOOKUP(tSequence[[#This Row],[Datum2]],tData[[Sort]:[Puls]],3,FALSE) ->  | M29: =VLOOKUP(tSequence[[#This Row],[Datum2]],tData[[Sort]:[Puls]],4,FALSE) ->  | N29: =MAX(VLOOKUP($K29,tKategorien[],3),VLOOKUP($L29,tKategorien[[Limit diast. ]:[Kat.]],2)) ->  | O29: =MAX(VLOOKUP($K30,tKategorien[],3),VLOOKUP($L30,tKategorien[[Limit diast. ]:[Kat.]],2)) ->  | P29: =MAX(VLOOKUP($K31,tKategorien[],3),VLOOKUP($L31,tKategorien[[Limit diast. ]:[Kat.]],2)) -> 
B30: =MAX(VLOOKUP(Report_4W!B30,tKategorien[],3),VLOOKUP(Report_4W!C30,tKategorien[[Limit diast. ]:[Kat.]],2)) ->  | C30: =MAX(VLOOKUP(Report_4W!E30,tKategorien[],3),VLOOKUP(Report_4W!F30,tKategorien[[Limit diast. ]:[Kat.]],2)) ->  | D30: =MAX(VLOOKUP(Report_4W!H30,tKategorien[],3),VLOOKUP(Report_4W!I30,tKategorien[[Limit diast. ]:[Kat.]],2)) ->  | H30: 2019-04-30 | I30: Mittag | J30: =INT(H30)+0.5 -> 43585.5 | K30: =VLOOKUP(tSequence[[#This Row],[Datum2]],tData[[Sort]:[Puls]],2,FALSE) ->  | L30: =VLOOKUP(tSequence[[#This Row],[Datum2]],tData[[Sort]:[Puls]],3,FALSE) ->  | M30: =VLOOKUP(tSequence[[#This Row],[Datum2]],tData[[Sort]:[Puls]],4,FALSE) -> 
B31: =MAX(VLOOKUP(Report_4W!B31,tKategorien[],3),VLOOKUP(Report_4W!C31,tKategorien[[Limit diast. ]:[Kat.]],2)) ->  | C31: =MAX(VLOOKUP(Report_4W!E31,tKategorien[],3),VLOOKUP(Report_4W!F31,tKategorien[[Limit diast. ]:[Kat.]],2)) ->  | D31: =MAX(VLOOKUP(Report_4W!H31,tKategorien[],3),VLOOKUP(Report_4W!I31,tKategorien[[Limit diast. ]:[Kat.]],2)) ->  | H31: 2019-04-30 | I31: Abend | J31: =INT(H31)+0.75 -> 43585.75 | K31: =VLOOKUP(tSequence[[#This Row],[Datum2]],tData[[Sort]:[Puls]],2,FALSE) ->  | L31: =VLOOKUP(tSequence[[#This Row],[Datum2]],tData[[Sort]:[Puls]],3,FALSE) ->  | M31: =VLOOKUP(tSequence[[#This Row],[Datum2]],tData[[Sort]:[Puls]],4,FALSE) -> 
B32: =MAX(VLOOKUP(Report_4W!#REF!,tKategorien[],3),VLOOKUP(Report_4W!#REF!,tKategorien[[Limit diast. ]:[Kat.]],2)) ->  | C32: =MAX(VLOOKUP(Report_4W!#REF!,tKategorien[],3),VLOOKUP(Report_4W!#REF!,tKategorien[[Limit diast. ]:[Kat.]],2)) ->  | D32: =MAX(VLOOKUP(Report_4W!#REF!,tKategorien[],3),VLOOKUP(Report_4W!#REF!,tKategorien[[Limit diast. ]:[Kat.]],2)) ->  | H32: 2019-05-01 | I32: Morgen | J32: =INT(H32)+0.25 -> 43586.25 | K32: =VLOOKUP(tSequence[[#This Row],[Datum2]],tData[[Sort]:[Puls]],2,FALSE) ->  | L32: =VLOOKUP(tSequence[[#This Row],[Datum2]],tData[[Sort]:[Puls]],3,FALSE) ->  | M32: =VLOOKUP(tSequence[[#This Row],[Datum2]],tData[[Sort]:[Puls]],4,FALSE) ->  | N32: =MAX(VLOOKUP($K32,tKategorien[],3),VLOOKUP($L32,tKategorien[[Limit diast. ]:[Kat.]],2)) ->  | O32: =MAX(VLOOKUP($K33,tKategorien[],3),VLOOKUP($L33,tKategorien[[Limit diast. ]:[Kat.]],2)) ->  | P32: =MAX(VLOOKUP($K34,tKategorien[],3),VLOOKUP($L34,tKategorien[[Limit diast. ]:[Kat.]],2)) -> 
B33: =MAX(VLOOKUP(Report_4W!#REF!,tKategorien[],3),VLOOKUP(Report_4W!#REF!,tKategorien[[Limit diast. ]:[Kat.]],2)) ->  | C33: =MAX(VLOOKUP(Report_4W!#REF!,tKategorien[],3),VLOOKUP(Report_4W!#REF!,tKategorien[[Limit diast. ]:[Kat.]],2)) ->  | D33: =MAX(VLOOKUP(Report_4W!#REF!,tKategorien[],3),VLOOKUP(Report_4W!#REF!,tKategorien[[Limit diast. ]:[Kat.]],2)) ->  | H33: 2019-05-01 | I33: Mittag | J33: =INT(H33)+0.5 -> 43586.5 | K33: =VLOOKUP(tSequence[[#This Row],[Datum2]],tData[[Sort]:[Puls]],2,FALSE) ->  | L33: =VLOOKUP(tSequence[[#This Row],[Datum2]],tData[[Sort]:[Puls]],3,FALSE) ->  | M33: =VLOOKUP(tSequence[[#This Row],[Datum2]],tData[[Sort]:[Puls]],4,FALSE) -> 
B34: =MAX(VLOOKUP(Report_4W!#REF!,tKategorien[],3),VLOOKUP(Report_4W!#REF!,tKategorien[[Limit diast. ]:[Kat.]],2)) ->  | C34: =MAX(VLOOKUP(Report_4W!#REF!,tKategorien[],3),VLOOKUP(Report_4W!#REF!,tKategorien[[Limit diast. ]:[Kat.]],2)) ->  | D34: =MAX(VLOOKUP(Report_4W!#REF!,tKategorien[],3),VLOOKUP(Report_4W!#REF!,tKategorien[[Limit diast. ]:[Kat.]],2)) ->  | H34: 2019-05-01 | I34: Abend | J34: =INT(H34)+0.75 -> 43586.75 | K34: =VLOOKUP(tSequence[[#This Row],[Datum2]],tData[[Sort]:[Puls]],2,FALSE) ->  | L34: =VLOOKUP(tSequence[[#This Row],[Datum2]],tData[[Sort]:[Puls]],3,FALSE) ->  | M34: =VLOOKUP(tSequence[[#This Row],[Datum2]],tData[[Sort]:[Puls]],4,FALSE) -> 
B35: =MAX(VLOOKUP(Report_4W!B32,tKategorien[],3),VLOOKUP(Report_4W!C32,tKategorien[[Limit diast. ]:[Kat.]],2)) ->  | C35: =MAX(VLOOKUP(Report_4W!E32,tKategorien[],3),VLOOKUP(Report_4W!F32,tKategorien[[Limit diast. ]:[Kat.]],2)) ->  | D35: =MAX(VLOOKUP(Report_4W!H32,tKategorien[],3),VLOOKUP(Report_4W!I32,tKategorien[[Limit diast. ]:[Kat.]],2)) ->  | H35: 2019-05-02 | I35: Morgen | J35: =INT(H35)+0.25 -> 43587.25 | K35: =VLOOKUP(tSequence[[#This Row],[Datum2]],tData[[Sort]:[Puls]],2,FALSE) ->  | L35: =VLOOKUP(tSequence[[#This Row],[Datum2]],tData[[Sort]:[Puls]],3,FALSE) ->  | M35: =VLOOKUP(tSequence[[#This Row],[Datum2]],tData[[Sort]:[Puls]],4,FALSE) ->  | N35: =MAX(VLOOKUP($K35,tKategorien[],3),VLOOKUP($L35,tKategorien[[Limit diast. ]:[Kat.]],2)) ->  | O35: =MAX(VLOOKUP($K36,tKategorien[],3),VLOOKUP($L36,tKategorien[[Limit diast. ]:[Kat.]],2)) ->  | P35: =MAX(VLOOKUP($K37,tKategorien[],3),VLOOKUP($L37,tKategorien[[Limit diast. ]:[Kat.]],2)) -> 
H36: 2019-05-02 | I36: Mittag | J36: =INT(H36)+0.5 -> 43587.5 | K36: =VLOOKUP(tSequence[[#This Row],[Datum2]],tData[[Sort]:[Puls]],2,FALSE) ->  | L36: =VLOOKUP(tSequence[[#This Row],[Datum2]],tData[[Sort]:[Puls]],3,FALSE) ->  | M36: =VLOOKUP(tSequence[[#This Row],[Datum2]],tData[[Sort]:[Puls]],4,FALSE) -> 
H37: 2019-05-02 | I37: Abend | J37: =INT(H37)+0.75 -> 43587.75 | K37: =VLOOKUP(tSequence[[#This Row],[Datum2]],tData[[Sort]:[Puls]],2,FALSE) ->  | L37: =VLOOKUP(tSequence[[#This Row],[Datum2]],tData[[Sort]:[Puls]],3,FALSE) ->  | M37: =VLOOKUP(tSequence[[#This Row],[Datum2]],tData[[Sort]:[Puls]],4,FALSE) -> 
H38: =INT($H$5+(ROW()-5)/3) -> 2019-05-03 | I38: Morgen | J38: =INT(H38)+0.25 -> 43588.25 | K38: =VLOOKUP(tSequence[[#This Row],[Datum2]],tData[[Sort]:[Puls]],2,FALSE) ->  | L38: =VLOOKUP(tSequence[[#This Row],[Datum2]],tData[[Sort]:[Puls]],3,FALSE) ->  | M38: =VLOOKUP(tSequence[[#This Row],[Datum2]],tData[[Sort]:[Puls]],4,FALSE) ->  | N38: =MAX(VLOOKUP($K38,tKategorien[],3),VLOOKUP($L38,tKategorien[[Limit diast. ]:[Kat.]],2)) ->  | O38: =MAX(VLOOKUP($K39,tKategorien[],3),VLOOKUP($L39,tKategorien[[Limit diast. ]:[Kat.]],2)) ->  | P38: =MAX(VLOOKUP($K40,tKategorien[],3),VLOOKUP($L40,tKategorien[[Limit diast. ]:[Kat.]],2)) -> 
H39: 2019-05-03 | I39: Mittag | J39: =INT(H39)+0.5 -> 43588.5 | K39: =VLOOKUP(tSequence[[#This Row],[Datum2]],tData[[Sort]:[Puls]],2,FALSE) ->  | L39: =VLOOKUP(tSequence[[#This Row],[Datum2]],tData[[Sort]:[Puls]],3,FALSE) ->  | M39: =VLOOKUP(tSequence[[#This Row],[Datum2]],tData[[Sort]:[Puls]],4,FALSE) -> 
H40: 2019-05-03 | I40: Abend | J40: =INT(H40)+0.75 -> 43588.75 | K40: =VLOOKUP(tSequence[[#This Row],[Datum2]],tData[[Sort]:[Puls]],2,FALSE) ->  | L40: =VLOOKUP(tSequence[[#This Row],[Datum2]],tData[[Sort]:[Puls]],3,FALSE) ->  | M40: =VLOOKUP(tSequence[[#This Row],[Datum2]],tData[[Sort]:[Puls]],4,FALSE) -> 
H41: 2019-05-04 | I41: Morgen | J41: =INT(H41)+0.25 -> 43589.25 | K41: =VLOOKUP(tSequence[[#This Row],[Datum2]],tData[[Sort]:[Puls]],2,FALSE) ->  | L41: =VLOOKUP(tSequence[[#This Row],[Datum2]],tData[[Sort]:[Puls]],3,FALSE) ->  | M41: =VLOOKUP(tSequence[[#This Row],[Datum2]],tData[[Sort]:[Puls]],4,FALSE) ->  | N41: =MAX(VLOOKUP($K41,tKategorien[],3),VLOOKUP($L41,tKategorien[[Limit diast. ]:[Kat.]],2)) ->  | O41: =MAX(VLOOKUP($K42,tKategorien[],3),VLOOKUP($L42,tKategorien[[Limit diast. ]:[Kat.]],2)) ->  | P41: =MAX(VLOOKUP($K43,tKategorien[],3),VLOOKUP($L43,tKategorien[[Limit diast. ]:[Kat.]],2)) -> 
H42: 2019-05-04 | I42: Mittag | J42: =INT(H42)+0.5 -> 43589.5 | K42: =VLOOKUP(tSequence[[#This Row],[Datum2]],tData[[Sort]:[Puls]],2,FALSE) ->  | L42: =VLOOKUP(tSequence[[#This Row],[Datum2]],tData[[Sort]:[Puls]],3,FALSE) ->  | M42: =VLOOKUP(tSequence[[#This Row],[Datum2]],tData[[Sort]:[Puls]],4,FALSE) -> 
H43: 2019-05-04 | I43: Abend | J43: =INT(H43)+0.75 -> 43589.75 | K43: =VLOOKUP(tSequence[[#This Row],[Datum2]],tData[[Sort]:[Puls]],2,FALSE) ->  | L43: =VLOOKUP(tSequence[[#This Row],[Datum2]],tData[[Sort]:[Puls]],3,FALSE) ->  | M43: =VLOOKUP(tSequence[[#This Row],[Datum2]],tData[[Sort]:[Puls]],4,FALSE) -> 
H44: 2019-05-05 | I44: Morgen | J44: =INT(H44)+0.25 -> 43590.25 | K44: =VLOOKUP(tSequence[[#This Row],[Datum2]],tData[[Sort]:[Puls]],2,FALSE) ->  | L44: =VLOOKUP(tSequence[[#This Row],[Datum2]],tData[[Sort]:[Puls]],3,FALSE) ->  | M44: =VLOOKUP(tSequence[[#This Row],[Datum2]],tData[[Sort]:[Puls]],4,FALSE) ->  | N44: =MAX(VLOOKUP($K44,tKategorien[],3),VLOOKUP($L44,tKategorien[[Limit diast. ]:[Kat.]],2)) ->  | O44: =MAX(VLOOKUP($K45,tKategorien[],3),VLOOKUP($L45,tKategorien[[Limit diast. ]:[Kat.]],2)) ->  | P44: =MAX(VLOOKUP($K46,tKategorien[],3),VLOOKUP($L46,tKategorien[[Limit diast. ]:[Kat.]],2)) -> 
H45: 2019-05-05 | I45: Mittag | J45: =INT(H45)+0.5 -> 43590.5 | K45: =VLOOKUP(tSequence[[#This Row],[Datum2]],tData[[Sort]:[Puls]],2,FALSE) ->  | L45: =VLOOKUP(tSequence[[#This Row],[Datum2]],tData[[Sort]:[Puls]],3,FALSE) ->  | M45: =VLOOKUP(tSequence[[#This Row],[Datum2]],tData[[Sort]:[Puls]],4,FALSE) -> 
H46: 2019-05-05 | I46: Abend | J46: =INT(H46)+0.75 -> 43590.75 | K46: =VLOOKUP(tSequence[[#This Row],[Datum2]],tData[[Sort]:[Puls]],2,FALSE) ->  | L46: =VLOOKUP(tSequence[[#This Row],[Datum2]],tData[[Sort]:[Puls]],3,FALSE) ->  | M46: =VLOOKUP(tSequence[[#This Row],[Datum2]],tData[[Sort]:[Puls]],4,FALSE) -> 
H47: 2019-05-06 | I47: Morgen | J47: =INT(H47)+0.25 -> 43591.25 | K47: =VLOOKUP(tSequence[[#This Row],[Datum2]],tData[[Sort]:[Puls]],2,FALSE) ->  | L47: =VLOOKUP(tSequence[[#This Row],[Datum2]],tData[[Sort]:[Puls]],3,FALSE) ->  | M47: =VLOOKUP(tSequence[[#This Row],[Datum2]],tData[[Sort]:[Puls]],4,FALSE) ->  | N47: =MAX(VLOOKUP($K47,tKategorien[],3),VLOOKUP($L47,tKategorien[[Limit diast. ]:[Kat.]],2)) ->  | O47: =MAX(VLOOKUP($K48,tKategorien[],3),VLOOKUP($L48,tKategorien[[Limit diast. ]:[Kat.]],2)) ->  | P47: =MAX(VLOOKUP($K49,tKategorien[],3),VLOOKUP($L49,tKategorien[[Limit diast. ]:[Kat.]],2)) -> 
H48: 2019-05-06 | I48: Mittag | J48: =INT(H48)+0.5 -> 43591.5 | K48: =VLOOKUP(tSequence[[#This Row],[Datum2]],tData[[Sort]:[Puls]],2,FALSE) ->  | L48: =VLOOKUP(tSequence[[#This Row],[Datum2]],tData[[Sort]:[Puls]],3,FALSE) ->  | M48: =VLOOKUP(tSequence[[#This Row],[Datum2]],tData[[Sort]:[Puls]],4,FALSE) -> 
H49: 2019-05-06 | I49: Abend | J49: =INT(H49)+0.75 -> 43591.75 | K49: =VLOOKUP(tSequence[[#This Row],[Datum2]],tData[[Sort]:[Puls]],2,FALSE) ->  | L49: =VLOOKUP(tSequence[[#This Row],[Datum2]],tData[[Sort]:[Puls]],3,FALSE) ->  | M49: =VLOOKUP(tSequence[[#This Row],[Datum2]],tData[[Sort]:[Puls]],4,FALSE) -> 
H50: 2019-05-07 | I50: Morgen | J50: =INT(H50)+0.25 -> 43592.25 | K50: =VLOOKUP(tSequence[[#This Row],[Datum2]],tData[[Sort]:[Puls]],2,FALSE) ->  | L50: =VLOOKUP(tSequence[[#This Row],[Datum2]],tData[[Sort]:[Puls]],3,FALSE) ->  | M50: =VLOOKUP(tSequence[[#This Row],[Datum2]],tData[[Sort]:[Puls]],4,FALSE) ->  | N50: =MAX(VLOOKUP($K50,tKategorien[],3),VLOOKUP($L50,tKategorien[[Limit diast. ]:[Kat.]],2)) ->  | O50: =MAX(VLOOKUP($K51,tKategorien[],3),VLOOKUP($L51,tKategorien[[Limit diast. ]:[Kat.]],2)) ->  | P50: =MAX(VLOOKUP($K52,tKategorien[],3),VLOOKUP($L52,tKategorien[[Limit diast. ]:[Kat.]],2)) -> 
H51: 2019-05-07 | I51: Mittag | J51: =INT(H51)+0.5 -> 43592.5 | K51: =VLOOKUP(tSequence[[#This Row],[Datum2]],tData[[Sort]:[Puls]],2,FALSE) ->  | L51: =VLOOKUP(tSequence[[#This Row],[Datum2]],tData[[Sort]:[Puls]],3,FALSE) ->  | M51: =VLOOKUP(tSequence[[#This Row],[Datum2]],tData[[Sort]:[Puls]],4,FALSE) -> 
H52: 2019-05-07 | I52: Abend | J52: =INT(H52)+0.75 -> 43592.75 | K52: =VLOOKUP(tSequence[[#This Row],[Datum2]],tData[[Sort]:[Puls]],2,FALSE) ->  | L52: =VLOOKUP(tSequence[[#This Row],[Datum2]],tData[[Sort]:[Puls]],3,FALSE) ->  | M52: =VLOOKUP(tSequence[[#This Row],[Datum2]],tData[[Sort]:[Puls]],4,FALSE) -> 
H53: 2019-05-08 | I53: Morgen | J53: =INT(H53)+0.25 -> 43593.25 | K53: =VLOOKUP(tSequence[[#This Row],[Datum2]],tData[[Sort]:[Puls]],2,FALSE) ->  | L53: =VLOOKUP(tSequence[[#This Row],[Datum2]],tData[[Sort]:[Puls]],3,FALSE) ->  | M53: =VLOOKUP(tSequence[[#This Row],[Datum2]],tData[[Sort]:[Puls]],4,FALSE) ->  | N53: =MAX(VLOOKUP($K53,tKategorien[],3),VLOOKUP($L53,tKategorien[[Limit diast. ]:[Kat.]],2)) ->  | O53: =MAX(VLOOKUP($K54,tKategorien[],3),VLOOKUP($L54,tKategorien[[Limit diast. ]:[Kat.]],2)) ->  | P53: =MAX(VLOOKUP($K55,tKategorien[],3),VLOOKUP($L55,tKategorien[[Limit diast. ]:[Kat.]],2)) -> 
H54: 2019-05-08 | I54: Mittag | J54: =INT(H54)+0.5 -> 43593.5 | K54: =VLOOKUP(tSequence[[#This Row],[Datum2]],tData[[Sort]:[Puls]],2,FALSE) ->  | L54: =VLOOKUP(tSequence[[#This Row],[Datum2]],tData[[Sort]:[Puls]],3,FALSE) ->  | M54: =VLOOKUP(tSequence[[#This Row],[Datum2]],tData[[Sort]:[Puls]],4,FALSE) -> 
H55: 2019-05-08 | I55: Abend | J55: =INT(H55)+0.75 -> 43593.75 | K55: =VLOOKUP(tSequence[[#This Row],[Datum2]],tData[[Sort]:[Puls]],2,FALSE) ->  | L55: =VLOOKUP(tSequence[[#This Row],[Datum2]],tData[[Sort]:[Puls]],3,FALSE) ->  | M55: =VLOOKUP(tSequence[[#This Row],[Datum2]],tData[[Sort]:[Puls]],4,FALSE) -> 
H56: 2019-05-09 | I56: Morgen | J56: =INT(H56)+0.25 -> 43594.25 | K56: =VLOOKUP(tSequence[[#This Row],[Datum2]],tData[[Sort]:[Puls]],2,FALSE) ->  | L56: =VLOOKUP(tSequence[[#This Row],[Datum2]],tData[[Sort]:[Puls]],3,FALSE) ->  | M56: =VLOOKUP(tSequence[[#This Row],[Datum2]],tData[[Sort]:[Puls]],4,FALSE) ->  | N56: =MAX(VLOOKUP($K56,tKategorien[],3),VLOOKUP($L56,tKategorien[[Limit diast. ]:[Kat.]],2)) ->  | O56: =MAX(VLOOKUP($K57,tKategorien[],3),VLOOKUP($L57,tKategorien[[Limit diast. ]:[Kat.]],2)) ->  | P56: =MAX(VLOOKUP($K58,tKategorien[],3),VLOOKUP($L58,tKategorien[[Limit diast. ]:[Kat.]],2)) -> 
H57: 2019-05-09 | I57: Mittag | J57: =INT(H57)+0.5 -> 43594.5 | K57: =VLOOKUP(tSequence[[#This Row],[Datum2]],tData[[Sort]:[Puls]],2,FALSE) ->  | L57: =VLOOKUP(tSequence[[#This Row],[Datum2]],tData[[Sort]:[Puls]],3,FALSE) ->  | M57: =VLOOKUP(tSequence[[#This Row],[Datum2]],tData[[Sort]:[Puls]],4,FALSE) -> 
H58: 2019-05-09 | I58: Abend | J58: =INT(H58)+0.75 -> 43594.75 | K58: =VLOOKUP(tSequence[[#This Row],[Datum2]],tData[[Sort]:[Puls]],2,FALSE) ->  | L58: =VLOOKUP(tSequence[[#This Row],[Datum2]],tData[[Sort]:[Puls]],3,FALSE) ->  | M58: =VLOOKUP(tSequence[[#This Row],[Datum2]],tData[[Sort]:[Puls]],4,FALSE) -> 
H59: 2019-05-10 | I59: Morgen | J59: =INT(H59)+0.25 -> 43595.25 | K59: =VLOOKUP(tSequence[[#This Row],[Datum2]],tData[[Sort]:[Puls]],2,FALSE) ->  | L59: =VLOOKUP(tSequence[[#This Row],[Datum2]],tData[[Sort]:[Puls]],3,FALSE) ->  | M59: =VLOOKUP(tSequence[[#This Row],[Datum2]],tData[[Sort]:[Puls]],4,FALSE) ->  | N59: =MAX(VLOOKUP($K59,tKategorien[],3),VLOOKUP($L59,tKategorien[[Limit diast. ]:[Kat.]],2)) ->  | O59: =MAX(VLOOKUP($K60,tKategorien[],3),VLOOKUP($L60,tKategorien[[Limit diast. ]:[Kat.]],2)) ->  | P59: =MAX(VLOOKUP($K61,tKategorien[],3),VLOOKUP($L61,tKategorien[[Limit diast. ]:[Kat.]],2)) -> 
H60: 2019-05-10 | I60: Mittag | J60: =INT(H60)+0.5 -> 43595.5 | K60: =VLOOKUP(tSequence[[#This Row],[Datum2]],tData[[Sort]:[Puls]],2,FALSE) ->  | L60: =VLOOKUP(tSequence[[#This Row],[Datum2]],tData[[Sort]:[Puls]],3,FALSE) ->  | M60: =VLOOKUP(tSequence[[#This Row],[Datum2]],tData[[Sort]:[Puls]],4,FALSE) -> 
H61: 2019-05-10 | I61: Abend | J61: =INT(H61)+0.75 -> 43595.75 | K61: =VLOOKUP(tSequence[[#This Row],[Datum2]],tData[[Sort]:[Puls]],2,FALSE) ->  | L61: =VLOOKUP(tSequence[[#This Row],[Datum2]],tData[[Sort]:[Puls]],3,FALSE) ->  | M61: =VLOOKUP(tSequence[[#This Row],[Datum2]],tData[[Sort]:[Puls]],4,FALSE) -> 
H62: 2019-05-11 | I62: Morgen | J62: =INT(H62)+0.25 -> 43596.25 | K62: =VLOOKUP(tSequence[[#This Row],[Datum2]],tData[[Sort]:[Puls]],2,FALSE) ->  | L62: =VLOOKUP(tSequence[[#This Row],[Datum2]],tData[[Sort]:[Puls]],3,FALSE) ->  | M62: =VLOOKUP(tSequence[[#This Row],[Datum2]],tData[[Sort]:[Puls]],4,FALSE) ->  | N62: =MAX(VLOOKUP($K62,tKategorien[],3),VLOOKUP($L62,tKategorien[[Limit diast. ]:[Kat.]],2)) ->  | O62: =MAX(VLOOKUP($K63,tKategorien[],3),VLOOKUP($L63,tKategorien[[Limit diast. ]:[Kat.]],2)) ->  | P62: =MAX(VLOOKUP($K64,tKategorien[],3),VLOOKUP($L64,tKategorien[[Limit diast. ]:[Kat.]],2)) -> 
H63: 2019-05-11 | I63: Mittag | J63: =INT(H63)+0.5 -> 43596.5 | K63: =VLOOKUP(tSequence[[#This Row],[Datum2]],tData[[Sort]:[Puls]],2,FALSE) ->  | L63: =VLOOKUP(tSequence[[#This Row],[Datum2]],tData[[Sort]:[Puls]],3,FALSE) ->  | M63: =VLOOKUP(tSequence[[#This Row],[Datum2]],tData[[Sort]:[Puls]],4,FALSE) -> 
H64: 2019-05-11 | I64: Abend | J64: =INT(H64)+0.75 -> 43596.75 | K64: =VLOOKUP(tSequence[[#This Row],[Datum2]],tData[[Sort]:[Puls]],2,FALSE) ->  | L64: =VLOOKUP(tSequence[[#This Row],[Datum2]],tData[[Sort]:[Puls]],3,FALSE) ->  | M64: =VLOOKUP(tSequence[[#This Row],[Datum2]],tData[[Sort]:[Puls]],4,FALSE) -> 
H65: 2019-05-12 | I65: Morgen | J65: =INT(H65)+0.25 -> 43597.25 | K65: =VLOOKUP(tSequence[[#This Row],[Datum2]],tData[[Sort]:[Puls]],2,FALSE) ->  | L65: =VLOOKUP(tSequence[[#This Row],[Datum2]],tData[[Sort]:[Puls]],3,FALSE) ->  | M65: =VLOOKUP(tSequence[[#This Row],[Datum2]],tData[[Sort]:[Puls]],4,FALSE) ->  | N65: =MAX(VLOOKUP($K65,tKategorien[],3),VLOOKUP($L65,tKategorien[[Limit diast. ]:[Kat.]],2)) ->  | O65: =MAX(VLOOKUP($K66,tKategorien[],3),VLOOKUP($L66,tKategorien[[Limit diast. ]:[Kat.]],2)) ->  | P65: =MAX(VLOOKUP($K67,tKategorien[],3),VLOOKUP($L67,tKategorien[[Limit diast. ]:[Kat.]],2)) -> 
H66: 2019-05-12 | I66: Mittag | J66: =INT(H66)+0.5 -> 43597.5 | K66: =VLOOKUP(tSequence[[#This Row],[Datum2]],tData[[Sort]:[Puls]],2,FALSE) ->  | L66: =VLOOKUP(tSequence[[#This Row],[Datum2]],tData[[Sort]:[Puls]],3,FALSE) ->  | M66: =VLOOKUP(tSequence[[#This Row],[Datum2]],tData[[Sort]:[Puls]],4,FALSE) -> 
H67: 2019-05-12 | I67: Abend | J67: =INT(H67)+0.75 -> 43597.75 | K67: =VLOOKUP(tSequence[[#This Row],[Datum2]],tData[[Sort]:[Puls]],2,FALSE) ->  | L67: =VLOOKUP(tSequence[[#This Row],[Datum2]],tData[[Sort]:[Puls]],3,FALSE) ->  | M67: =VLOOKUP(tSequence[[#This Row],[Datum2]],tData[[Sort]:[Puls]],4,FALSE) -> 
H68: 2019-05-13 | I68: Morgen | J68: =INT(H68)+0.25 -> 43598.25 | K68: =VLOOKUP(tSequence[[#This Row],[Datum2]],tData[[Sort]:[Puls]],2,FALSE) ->  | L68: =VLOOKUP(tSequence[[#This Row],[Datum2]],tData[[Sort]:[Puls]],3,FALSE) ->  | M68: =VLOOKUP(tSequence[[#This Row],[Datum2]],tData[[Sort]:[Puls]],4,FALSE) ->  | N68: =MAX(VLOOKUP($K68,tKategorien[],3),VLOOKUP($L68,tKategorien[[Limit diast. ]:[Kat.]],2)) ->  | O68: =MAX(VLOOKUP($K69,tKategorien[],3),VLOOKUP($L69,tKategorien[[Limit diast. ]:[Kat.]],2)) ->  | P68: =MAX(VLOOKUP($K70,tKategorien[],3),VLOOKUP($L70,tKategorien[[Limit diast. ]:[Kat.]],2)) -> 
H69: 2019-05-13 | I69: Mittag | J69: =INT(H69)+0.5 -> 43598.5 | K69: =VLOOKUP(tSequence[[#This Row],[Datum2]],tData[[Sort]:[Puls]],2,FALSE) ->  | L69: =VLOOKUP(tSequence[[#This Row],[Datum2]],tData[[Sort]:[Puls]],3,FALSE) ->  | M69: =VLOOKUP(tSequence[[#This Row],[Datum2]],tData[[Sort]:[Puls]],4,FALSE) -> 
H70: 2019-05-13 | I70: Abend | J70: =INT(H70)+0.75 -> 43598.75 | K70: =VLOOKUP(tSequence[[#This Row],[Datum2]],tData[[Sort]:[Puls]],2,FALSE) ->  | L70: =VLOOKUP(tSequence[[#This Row],[Datum2]],tData[[Sort]:[Puls]],3,FALSE) ->  | M70: =VLOOKUP(tSequence[[#This Row],[Datum2]],tData[[Sort]:[Puls]],4,FALSE) -> 
H71: 2019-05-14 | I71: Morgen | J71: =INT(H71)+0.25 -> 43599.25 | K71: =VLOOKUP(tSequence[[#This Row],[Datum2]],tData[[Sort]:[Puls]],2,FALSE) ->  | L71: =VLOOKUP(tSequence[[#This Row],[Datum2]],tData[[Sort]:[Puls]],3,FALSE) ->  | M71: =VLOOKUP(tSequence[[#This Row],[Datum2]],tData[[Sort]:[Puls]],4,FALSE) ->  | N71: =MAX(VLOOKUP($K71,tKategorien[],3),VLOOKUP($L71,tKategorien[[Limit diast. ]:[Kat.]],2)) ->  | O71: =MAX(VLOOKUP($K72,tKategorien[],3),VLOOKUP($L72,tKategorien[[Limit diast. ]:[Kat.]],2)) ->  | P71: =MAX(VLOOKUP($K73,tKategorien[],3),VLOOKUP($L73,tKategorien[[Limit diast. ]:[Kat.]],2)) -> 
H72: 2019-05-14 | I72: Mittag | J72: =INT(H72)+0.5 -> 43599.5 | K72: =VLOOKUP(tSequence[[#This Row],[Datum2]],tData[[Sort]:[Puls]],2,FALSE) ->  | L72: =VLOOKUP(tSequence[[#This Row],[Datum2]],tData[[Sort]:[Puls]],3,FALSE) ->  | M72: =VLOOKUP(tSequence[[#This Row],[Datum2]],tData[[Sort]:[Puls]],4,FALSE) -> 
H73: 2019-05-14 | I73: Abend | J73: =INT(H73)+0.75 -> 43599.75 | K73: =VLOOKUP(tSequence[[#This Row],[Datum2]],tData[[Sort]:[Puls]],2,FALSE) ->  | L73: =VLOOKUP(tSequence[[#This Row],[Datum2]],tData[[Sort]:[Puls]],3,FALSE) ->  | M73: =VLOOKUP(tSequence[[#This Row],[Datum2]],tData[[Sort]:[Puls]],4,FALSE) -> 
H74: 2019-05-15 | I74: Morgen | J74: =INT(H74)+0.25 -> 43600.25 | K74: =VLOOKUP(tSequence[[#This Row],[Datum2]],tData[[Sort]:[Puls]],2,FALSE) ->  | L74: =VLOOKUP(tSequence[[#This Row],[Datum2]],tData[[Sort]:[Puls]],3,FALSE) ->  | M74: =VLOOKUP(tSequence[[#This Row],[Datum2]],tData[[Sort]:[Puls]],4,FALSE) ->  | N74: =MAX(VLOOKUP($K74,tKategorien[],3),VLOOKUP($L74,tKategorien[[Limit diast. ]:[Kat.]],2)) ->  | O74: =MAX(VLOOKUP($K75,tKategorien[],3),VLOOKUP($L75,tKategorien[[Limit diast. ]:[Kat.]],2)) ->  | P74: =MAX(VLOOKUP($K76,tKategorien[],3),VLOOKUP($L76,tKategorien[[Limit diast. ]:[Kat.]],2)) -> 
H75: 2019-05-15 | I75: Mittag | J75: =INT(H75)+0.5 -> 43600.5 | K75: =VLOOKUP(tSequence[[#This Row],[Datum2]],tData[[Sort]:[Puls]],2,FALSE) ->  | L75: =VLOOKUP(tSequence[[#This Row],[Datum2]],tData[[Sort]:[Puls]],3,FALSE) ->  | M75: =VLOOKUP(tSequence[[#This Row],[Datum2]],tData[[Sort]:[Puls]],4,FALSE) -> 
H76: 2019-05-15 | I76: Abend | J76: =INT(H76)+0.75 -> 43600.75 | K76: =VLOOKUP(tSequence[[#This Row],[Datum2]],tData[[Sort]:[Puls]],2,FALSE) ->  | L76: =VLOOKUP(tSequence[[#This Row],[Datum2]],tData[[Sort]:[Puls]],3,FALSE) ->  | M76: =VLOOKUP(tSequence[[#This Row],[Datum2]],tData[[Sort]:[Puls]],4,FALSE) -> 
H77: 2019-05-16 | I77: Morgen | J77: =INT(H77)+0.25 -> 43601.25 | K77: =VLOOKUP(tSequence[[#This Row],[Datum2]],tData[[Sort]:[Puls]],2,FALSE) ->  | L77: =VLOOKUP(tSequence[[#This Row],[Datum2]],tData[[Sort]:[Puls]],3,FALSE) ->  | M77: =VLOOKUP(tSequence[[#This Row],[Datum2]],tData[[Sort]:[Puls]],4,FALSE) ->  | N77: =MAX(VLOOKUP($K77,tKategorien[],3),VLOOKUP($L77,tKategorien[[Limit diast. ]:[Kat.]],2)) ->  | O77: =MAX(VLOOKUP($K78,tKategorien[],3),VLOOKUP($L78,tKategorien[[Limit diast. ]:[Kat.]],2)) ->  | P77: =MAX(VLOOKUP($K79,tKategorien[],3),VLOOKUP($L79,tKategorien[[Limit diast. ]:[Kat.]],2)) -> 
H78: 2019-05-16 | I78: Mittag | J78: =INT(H78)+0.5 -> 43601.5 | K78: =VLOOKUP(tSequence[[#This Row],[Datum2]],tData[[Sort]:[Puls]],2,FALSE) ->  | L78: =VLOOKUP(tSequence[[#This Row],[Datum2]],tData[[Sort]:[Puls]],3,FALSE) ->  | M78: =VLOOKUP(tSequence[[#This Row],[Datum2]],tData[[Sort]:[Puls]],4,FALSE) -> 
H79: 2019-05-16 | I79: Abend | J79: =INT(H79)+0.75 -> 43601.75 | K79: =VLOOKUP(tSequence[[#This Row],[Datum2]],tData[[Sort]:[Puls]],2,FALSE) ->  | L79: =VLOOKUP(tSequence[[#This Row],[Datum2]],tData[[Sort]:[Puls]],3,FALSE) ->  | M79: =VLOOKUP(tSequence[[#This Row],[Datum2]],tData[[Sort]:[Puls]],4,FALSE) -> 
H80: 2019-05-17 | I80: Morgen | J80: =INT(H80)+0.25 -> 43602.25 | K80: =VLOOKUP(tSequence[[#This Row],[Datum2]],tData[[Sort]:[Puls]],2,FALSE) ->  | L80: =VLOOKUP(tSequence[[#This Row],[Datum2]],tData[[Sort]:[Puls]],3,FALSE) ->  | M80: =VLOOKUP(tSequence[[#This Row],[Datum2]],tData[[Sort]:[Puls]],4,FALSE) ->  | N80: =MAX(VLOOKUP($K80,tKategorien[],3),VLOOKUP($L80,tKategorien[[Limit diast. ]:[Kat.]],2)) ->  | O80: =MAX(VLOOKUP($K81,tKategorien[],3),VLOOKUP($L81,tKategorien[[Limit diast. ]:[Kat.]],2)) ->  | P80: =MAX(VLOOKUP($K82,tKategorien[],3),VLOOKUP($L82,tKategorien[[Limit diast. ]:[Kat.]],2)) -> 
H81: 2019-05-17 | I81: Mittag | J81: =INT(H81)+0.5 -> 43602.5 | K81: =VLOOKUP(tSequence[[#This Row],[Datum2]],tData[[Sort]:[Puls]],2,FALSE) ->  | L81: =VLOOKUP(tSequence[[#This Row],[Datum2]],tData[[Sort]:[Puls]],3,FALSE) ->  | M81: =VLOOKUP(tSequence[[#This Row],[Datum2]],tData[[Sort]:[Puls]],4,FALSE) -> 
H82: 2019-05-17 | I82: Abend | J82: =INT(H82)+0.75 -> 43602.75 | K82: =VLOOKUP(tSequence[[#This Row],[Datum2]],tData[[Sort]:[Puls]],2,FALSE) ->  | L82: =VLOOKUP(tSequence[[#This Row],[Datum2]],tData[[Sort]:[Puls]],3,FALSE) ->  | M82: =VLOOKUP(tSequence[[#This Row],[Datum2]],tData[[Sort]:[Puls]],4,FALSE) -> 
H83: 2019-05-18 | I83: Morgen | J83: =INT(H83)+0.25 -> 43603.25 | K83: =VLOOKUP(tSequence[[#This Row],[Datum2]],tData[[Sort]:[Puls]],2,FALSE) ->  | L83: =VLOOKUP(tSequence[[#This Row],[Datum2]],tData[[Sort]:[Puls]],3,FALSE) ->  | M83: =VLOOKUP(tSequence[[#This Row],[Datum2]],tData[[Sort]:[Puls]],4,FALSE) ->  | N83: =MAX(VLOOKUP($K83,tKategorien[],3),VLOOKUP($L83,tKategorien[[Limit diast. ]:[Kat.]],2)) ->  | O83: =MAX(VLOOKUP($K84,tKategorien[],3),VLOOKUP($L84,tKategorien[[Limit diast. ]:[Kat.]],2)) ->  | P83: =MAX(VLOOKUP($K85,tKategorien[],3),VLOOKUP($L85,tKategorien[[Limit diast. ]:[Kat.]],2)) -> 
H84: 2019-05-18 | I84: Mittag | J84: =INT(H84)+0.5 -> 43603.5 | K84: =VLOOKUP(tSequence[[#This Row],[Datum2]],tData[[Sort]:[Puls]],2,FALSE) ->  | L84: =VLOOKUP(tSequence[[#This Row],[Datum2]],tData[[Sort]:[Puls]],3,FALSE) ->  | M84: =VLOOKUP(tSequence[[#This Row],[Datum2]],tData[[Sort]:[Puls]],4,FALSE) -> 
H85: 2019-05-18 | I85: Abend | J85: =INT(H85)+0.75 -> 43603.75 | K85: =VLOOKUP(tSequence[[#This Row],[Datum2]],tData[[Sort]:[Puls]],2,FALSE) ->  | L85: =VLOOKUP(tSequence[[#This Row],[Datum2]],tData[[Sort]:[Puls]],3,FALSE) ->  | M85: =VLOOKUP(tSequence[[#This Row],[Datum2]],tData[[Sort]:[Puls]],4,FALSE) -> 
H86: 2019-05-19 | I86: Morgen | J86: =INT(H86)+0.25 -> 43604.25 | K86: =VLOOKUP(tSequence[[#This Row],[Datum2]],tData[[Sort]:[Puls]],2,FALSE) ->  | L86: =VLOOKUP(tSequence[[#This Row],[Datum2]],tData[[Sort]:[Puls]],3,FALSE) ->  | M86: =VLOOKUP(tSequence[[#This Row],[Datum2]],tData[[Sort]:[Puls]],4,FALSE) ->  | N86: =MAX(VLOOKUP($K86,tKategorien[],3),VLOOKUP($L86,tKategorien[[Limit diast. ]:[Kat.]],2)) ->  | O86: =MAX(VLOOKUP($K87,tKategorien[],3),VLOOKUP($L87,tKategorien[[Limit diast. ]:[Kat.]],2)) ->  | P86: =MAX(VLOOKUP($K88,tKategorien[],3),VLOOKUP($L88,tKategorien[[Limit diast. ]:[Kat.]],2)) -> 
H87: 2019-05-19 | I87: Mittag | J87: =INT(H87)+0.5 -> 43604.5 | K87: =VLOOKUP(tSequence[[#This Row],[Datum2]],tData[[Sort]:[Puls]],2,FALSE) ->  | L87: =VLOOKUP(tSequence[[#This Row],[Datum2]],tData[[Sort]:[Puls]],3,FALSE) ->  | M87: =VLOOKUP(tSequence[[#This Row],[Datum2]],tData[[Sort]:[Puls]],4,FALSE) -> 
H88: 2019-05-19 | I88: Abend | J88: =INT(H88)+0.75 -> 43604.75 | K88: =VLOOKUP(tSequence[[#This Row],[Datum2]],tData[[Sort]:[Puls]],2,FALSE) ->  | L88: =VLOOKUP(tSequence[[#This Row],[Datum2]],tData[[Sort]:[Puls]],3,FALSE) ->  | M88: =VLOOKUP(tSequence[[#This Row],[Datum2]],tData[[Sort]:[Puls]],4,FALSE) -> 

Sheet data (hidden)
A1: Datum1 | B1: Tageszeit | C1: Sort | D1: Systolisch | E1: Diastolisch | F1: Puls | G1: Bemerkung
C2: =tData[[#This Row],[Datum1]]+_xlfn.IFNA(VLOOKUP(tData[[#This Row],[Tageszeit]],tTageszeit[],3,FALSE), 0) -> 0

Sheet settings (hidden)
B3: Tageszeit | C3: Index | D3: Zeitwert | F3: Limit syst. | G3: Limit diast. | H3: Kat. | J3: Bedeutung | K3: Wert | L3: Default
B4: Morgen | C4: 1 | D4: 0.25 | F4: 1 | G4: 1 | H4: 1 | J4: Letzter Wert vom: | K4: =MAX(tData[Datum1]) -> 00:00:00 | L4: =MAX(tData[Datum1]) -> 00:00:00
B5: Mittag | C5: 2 | D5: 0.5 | F5: 90 | G5: 60 | H5: 2 | J5: Kalenderwoche: | K5: =WEEKNUM(K4,21)&"/"&YEAR(K4) -> 52/1900
B6: Abend | C6: 3 | D6: 0.75 | F6: 120 | G6: 80 | H6: 3 | J6: 4W_Start: | K6: 2019-04-22 | L6: =$K4-WEEKDAY($K4,3)-21 -> -26
F7: 140 | G7: 90 | H7: 4 | J7: Nachname:
F8: 160 | G8: 100 | H8: 5 | J8: Vorname:
F9: 180 | G9: 110 | H9: 6 | J9: Geburtsdatum:
J10: Mittagswerte verw.: | K10: 0 | L10: 1
